bitfinex-derivatives/quotes_BTCF0:USTF0_20250127
["timestamp","ask_amount","ask_price","bid_price","bid_amount"]
[1737940997982,1.05352351,101780.0,101770.0,0.01536712]
[1737940998683,1.05652351,101780.0,101770.0,0.01536712]
[1737941001885,0.196649,101770.0,101760.0,1.50014749]
[1737941002186,0.69632251,101770.0,101760.0,0.00014749]
[1737941002578,0.196707,101740.0,101730.0,2.1490786]
[1737941002777,0.33558051,101740.0,101730.0,2.17367353]
[1737941002978,0.45010051,101740.0,101730.0,2.05237353]
[1737941003379,0.11452,101740.0,101730.0,2.60989953]
[1737941003781,0.11452,101740.0,101730.0,2.72889953]
[1737941003987,0.11452,101740.0,101730.0,2.53517353]
[1737941004188,0.11452,101740.0,101730.0,2.01639493]
[1737941004377,0.11452,101740.0,101730.0,2.21312093]
[1737941005075,0.25339351,101740.0,101730.0,1.89739493]
[1737941005289,0.45010051,101740.0,101730.0,1.89739493]
[1737941005478,0.45010051,101740.0,101730.0,1.89539493]
[1737941005885,0.45010051,101740.0,101730.0,1.88939493]
[1737941007190,0.45010051,101740.0,101730.0,1.52859493]
[1737941007781,0.45010051,101740.0,101730.0,1.88939493]
[1737941007981,0.45010051,101740.0,101730.0,1.52859493]
[1737941008176,0.45010051,101740.0,101730.0,1.88939493]
[1737941008588,0.46369668,101740.0,101730.0,1.88939493]
[1737941010487,0.46369668,101740.0,101730.0,1.88939553]
[1737941010882,0.46369668,101740.0,101730.0,1.92013998]
[1737941011694,0.46369668,101740.0,101730.0,1.88939553]
[1737941012390,0.46369668,101740.0,101730.0,1.92013975]
[1737941012780,0.46369668,101740.0,101730.0,1.55933975]
[1737941012984,0.46369668,101740.0,101730.0,1.92013975]
[1737941013384,0.01359617,101740.0,101730.0,1.92013975]
[1737941013590,0.19684249,101750.0,101730.0,0.6320768]
[1737941013883,0.335716,101750.0,101730.0,0.63223524]
[1737941014094,0.335716,101750.0,101740.0,1.5]
[1737941014285,0.335716,101750.0,101740.0,1.57071124]
[1737941014485,0.335716,101750.0,101740.0,1.69391124]
[1737941014486,0.19684249,101750.0,101740.0,1.69391124]
[1737941014690,0.19684249,101750.0,101740.0,1.69390657]
[1737941014889,0.335716,101750.0,101740.0,1.69390657]
[1737941015091,0.696516,101750.0,101740.0,1.57070657]
[1737941015291,0.696516,101750.0,101740.0,0.07070657]
[1737941015589,0.696516,101750.0,101740.0,0.03996458]
[1737941015790,0.696516,101750.0,101740.0,1.53996458]
[1737941016186,0.7099601,101750.0,101740.0,0.03996458]
[1737941017693,0.3491601,101750.0,101740.0,0.03996458]
[1737941018095,0.7099601,101750.0,101740.0,0.03996458]
[1737941018600,0.3491601,101750.0,101740.0,0.07070905]
[1737941018893,0.7099601,101750.0,101740.0,0.07070905]
[1737941019089,0.69142595,101750.0,101740.0,0.07070905]
[1737941019289,0.33062595,101750.0,101740.0,0.07070905]
[1737941021299,0.33062595,101750.0,101740.0,0.08593584]
[1737941022194,0.0134441,101750.0,101740.0,0.44673584]
[1737941022397,0.810898,101760.0,101740.0,0.76744284]
[1737941022602,0.196688,101750.0,101740.0,0.57073584]
[1737941022793,0.196688,101750.0,101740.0,0.19470905]
[1737941023091,0.33541402,101750.0,101740.0,0.43150905]
[1737941023704,0.33541402,101750.0,101740.0,0.08601988]
[1737941024694,0.33541402,101750.0,101740.0,0.05527541]
[1737941024894,0.69621402,101750.0,101740.0,0.05527541]
[1737941025095,0.33541402,101750.0,101740.0,0.05527541]
[1737941025295,0.13887351,101750.0,101740.0,0.05527541]
[1737941025499,0.0014748,101770.0,101740.0,0.88881309]
[1737941025693,0.14322542,101790.0,101780.0,0.19663]
[1737941026395,0.14322542,101790.0,101780.0,0.32293]
[1737941026592,0.14322542,101790.0,101780.0,2.36399889]
[1737941026891,0.15122542,101790.0,101780.0,2.46817819]
[1737941027091,0.1726948,101800.0,101790.0,0.19661]
[1737941027295,0.20297812,101810.0,101790.0,0.5396217]
[1737941027497,0.20297812,101810.0,101800.0,0.557391]
[1737941027695,0.20297812,101810.0,101800.0,0.59733919]
[1737941027901,0.39955012,101810.0,101800.0,0.03994819]
[1737941029303,0.38116345,101810.0,101800.0,0.03994819]
[1737941029603,0.88083696,101810.0,101800.0,0.03994819]
[1737941030106,1.13023696,101810.0,101800.0,0.03994819]
[1737941030607,1.14385503,101810.0,101800.0,0.03994819]
[1737941031205,0.95926358,101810.0,101800.0,0.03994819]
[1737941031913,1.07676358,101810.0,101800.0,0.01536469]
[1737941032207,1.07876358,101810.0,101800.0,0.01536469]
[1737941032908,0.93789007,101810.0,101800.0,0.01536469]
[1737941033107,0.93989007,101810.0,101800.0,0.03994648]
[1737941033605,0.74331807,101810.0,101800.0,0.03994648]
[1737941033909,0.37641807,101810.0,101800.0,0.23653748]
[1737941034205,0.01561807,101810.0,101800.0,0.23653748]
[1737941034408,0.01561807,101810.0,101800.0,1.73653748]
[1737941034593,0.01561807,101810.0,101800.0,2.09733748]
[1737941035902,0.002,101810.0,101800.0,2.09733748]
[1737941036704,0.002,101810.0,101800.0,2.11256736]
[1737941037409,0.002,101810.0,101800.0,2.11254614]
[1737941038401,0.002,101810.0,101800.0,2.25141965]
[1737941039010,0.002,101810.0,101800.0,2.12612688]
[1737941039201,0.002,101810.0,101800.0,2.11254614]
[1737941039403,0.002,101810.0,101800.0,2.25141161]
[1737941041100,0.21001279,101820.0,101800.0,2.09732836]
[1737941041296,0.21001279,101820.0,101810.0,0.3608]
[1737941041502,0.21001279,101820.0,101810.0,0.40073736]
[1737941041704,0.00014749,101820.0,101810.0,0.59730936]
[1737941042102,0.00014749,101820.0,101810.0,0.73618287]
[1737941042613,0.00014749,101820.0,101810.0,0.59730936]
[1737941042813,0.00014749,101820.0,101810.0,0.59730748]
[1737941043313,0.696373,101820.0,101810.0,0.04093548]
[1737941043515,0.36094749,101820.0,101810.0,0.04093548]
[1737941043808,0.55749949,101820.0,101810.0,0.04093548]
[1737941044010,0.00014749,101820.0,101810.0,0.59830748]
[1737941044217,0.00014749,101820.0,101810.0,0.62902971]
[1737941044404,0.00014749,101820.0,101810.0,1.13470322]
[1737941044609,0.36227383,101840.0,101820.0,0.196552]
[1737941044910,0.36227383,101840.0,101830.0,0.196533]
[1737941045114,0.00147383,101840.0,101830.0,0.62798511]
[1737941045313,0.00147383,101840.0,101830.0,0.62798285]
[1737941045507,0.3794,101850.0,101830.0,0.62798285]
[1737941045815,0.71492,101850.0,101830.0,0.64318732]
[1737941046117,0.69618751,101840.0,101830.0,0.07064985]
[1737941046615,0.83506102,101840.0,101830.0,0.03993548]
[1737941046813,0.83506102,101840.0,101830.0,0.0153598]
[1737941047017,0.196563,101820.0,101800.0,1.87600447]
[1737941047216,0.196572,101810.0,101800.0,1.57050329]
[1737941047512,0.69624551,101810.0,101800.0,0.05529882]
[1737941047702,1.06764551,101810.0,101800.0,0.05529882]
[1737941047909,1.06764551,101810.0,101800.0,0.02457725]
[1737941048103,1.04911136,101810.0,101800.0,1.52457725]
[1737941048710,1.04911136,101810.0,101800.0,1.52458109]
[1737941049605,1.05011136,101810.0,101800.0,1.52458109]
[1737941049907,1.06332714,101810.0,101800.0,1.52458109]
[1737941050106,1.06332714,101810.0,101800.0,1.5]
[1737941050312,0.196591,101800.0,101790.0,0.00014749]
[1737941050513,0.19661,101790.0,101780.0,0.23604187]
[1737941050703,0.69628351,101790.0,101780.0,0.23604187]
[1737941050908,0.69628351,101790.0,101780.0,0.23456827]
[1737941051614,0.19663,101780.0,101770.0,0.39944351]
[1737941051914,0.196649,101770.0,101750.0,0.54190116]
[1737941052217,0.196649,101770.0,101760.0,0.00014749]
[1737941052218,0.69632251,101770.0,101760.0,0.00014749]
[1737941052412,0.69632251,101770.0,101760.0,0.03088736]
[1737941052413,0.69647,101770.0,101760.0,0.03088736]
[1737941053208,0.69647,101770.0,101760.0,0.00014749]
[1737941053415,0.69747,101770.0,101760.0,0.03088813]
[1737941054309,0.33667,101770.0,101760.0,0.03088813]
[1737941054611,0.33667,101770.0,101760.0,0.03088613]
[1737941055011,0.19779649,101770.0,101760.0,0.04614175]
[1737941055916,0.00114749,101770.0,101760.0,0.40694175]
[1737941056115,0.26134792,101800.0,101770.0,0.196641]
[1737941056317,0.01468064,101800.0,101780.0,0.57268851]
[1737941056617,0.01468064,101800.0,101790.0,0.01526751]
[1737941056919,0.00147441,101800.0,101790.0,1.54600615]
[1737941058018,0.19806541,101800.0,101790.0,1.54600615]
[1737941058316,0.33693892,101800.0,101790.0,0.04600615]
[1737941058717,0.20206541,101800.0,101790.0,1.53073864]
[1737941058920,0.20206541,101800.0,101790.0,1.54610218]
[1737941059114,0.00547441,101800.0,101790.0,1.90690218]
[1737941059320,0.00547441,101800.0,101790.0,1.90790218]
[1737941060416,0.00547441,101800.0,101790.0,2.10451218]
[1737941060618,0.00547441,101800.0,101790.0,2.12909308]
[1737941060805,0.004,101800.0,101790.0,2.2832341]
[1737941061012,0.004,101800.0,101790.0,2.50406659]
[1737941061211,0.00014749,101810.0,101800.0,0.196591]
[1737941061520,0.00014749,101810.0,101800.0,0.62807408]
[1737941061920,0.00014749,101810.0,101800.0,0.59733544]
[1737941062309,0.00014749,101810.0,101800.0,0.61258604]
[1737941062525,0.00414749,101810.0,101800.0,0.61358604]
[1737941063618,0.00314749,101810.0,101800.0,0.61258604]
[1737941063918,0.00314749,101810.0,101800.0,0.76691898]
[1737941064124,0.20927497,101830.0,101820.0,0.196553]
[1737941064426,0.20927497,101830.0,101820.0,1.57065447]
[1737941064614,0.20927497,101830.0,101820.0,1.58590937]
[1737941065024,0.19074081,101830.0,101820.0,1.58590937]
[1737941065214,0.69041432,101830.0,101820.0,1.58590937]
[1737941065416,0.69041432,101830.0,101820.0,0.07065447]
[1737941065624,0.69141432,101830.0,101820.0,0.07165447]
[1737941065818,0.70379543,101830.0,101820.0,0.07165447]
[1737941066011,0.70379543,101830.0,101820.0,0.03434075]
[1737941066216,0.196572,101810.0,101800.0,0.0152549]
[1737941066519,0.69624551,101810.0,101800.0,0.03072545]
[1737941066925,0.196602,101800.0,101780.0,2.0726789]
[1737941067218,0.69627551,101800.0,101780.0,2.0726789]
[1737941067418,0.449583,101800.0,101780.0,2.07282639]
[1737941067618,0.31070949,101800.0,101780.0,2.07282639]
[1737941068017,0.810383,101800.0,101780.0,2.07282639]
[1737941068219,0.31070949,101800.0,101780.0,2.07282639]
[1737941068424,0.11410749,101800.0,101780.0,2.07282639]
[1737941069028,0.11410749,101800.0,101790.0,0.19661]
[1737941069522,0.11410749,101800.0,101780.0,1.87620239]
[1737941069723,0.11410749,101800.0,101780.0,2.07282639]
[1737941069916,0.11410749,101800.0,101780.0,2.07582639]
[1737941070122,0.11410749,101800.0,101780.0,2.07583202]
[1737941070426,0.31069949,101800.0,101780.0,2.07583202]
[1737941070926,0.31069949,101800.0,101780.0,2.06057149]
[1737941071727,0.31069949,101800.0,101780.0,0.55757149]
[1737941071928,0.11410749,101800.0,101790.0,0.19661]
[1737941072125,0.31069849,101800.0,101790.0,1.5]
[1737941072718,0.11410749,101800.0,101790.0,1.8608]
[1737941072920,0.11410749,101800.0,101790.0,2.05741]
[1737941073119,0.00014749,101800.0,101790.0,2.05741]
[1737941073919,0.00014749,101800.0,101790.0,2.19628351]
[1737941075317,0.00014749,101800.0,101790.0,2.05741]
[1737941075916,0.19673849,101800.0,101790.0,1.8608]
[1737941076220,0.19673849,101800.0,101790.0,1.88537927]
[1737941076816,0.335612,101800.0,101790.0,1.88537927]
[1737941077128,0.19673849,101800.0,101790.0,1.88537927]
[1737941078228,0.19673849,101800.0,101790.0,1.90074185]
[1737941080028,0.19673849,101800.0,101790.0,1.90074299]
[1737941080828,0.19673849,101800.0,101790.0,2.09735299]
[1737941081022,0.19673849,101800.0,101790.0,1.53994299]
[1737941081227,0.19673849,101800.0,101790.0,2.09735299]
[1737941081827,0.335612,101800.0,101790.0,0.03994299]
[1737941082023,0.335612,101800.0,101790.0,0.40074299]
[1737941082223,0.00014749,101800.0,101790.0,0.59735299]
[1737941082529,0.00014749,101800.0,101790.0,2.09735299]
[1737941083319,0.42178924,101820.0,101810.0,0.196572]
[1737941083320,0.28291573,101820.0,101810.0,0.196572]
[1737941083527,0.28291573,101820.0,101810.0,0.23651499]
[1737941083830,0.42178924,101820.0,101810.0,0.03994299]
[1737941084617,0.13887351,101820.0,101810.0,0.59731499]
[1737941084823,0.25038817,101830.0,101810.0,0.40074299]
[1737941085026,0.24096817,101830.0,101820.0,0.557352]
[1737941085324,0.11528314,101830.0,101820.0,0.59729499]
[1737941086031,0.11528314,101830.0,101820.0,0.59728243]
[1737941086227,0.31181614,101830.0,101820.0,0.59728243]
[1737941086826,0.25415665,101830.0,101820.0,0.59828243]
[1737941087133,0.11528314,101830.0,101820.0,0.59828243]
[1737941087826,0.11528314,101830.0,101820.0,2.09828243]
[1737941088732,0.31181614,101830.0,101820.0,2.09828243]
[1737941088932,0.19668049,101830.0,101820.0,2.09828243]
[1737941090525,0.19668049,101830.0,101820.0,0.59828243]
[1737941092532,0.19668049,101830.0,101820.0,0.04093043]
[1737941092834,0.28936057,101830.0,101820.0,0.04093043]
[1737941093434,0.19668049,101830.0,101820.0,0.40173043]
[1737941093636,0.28936057,101830.0,101820.0,0.40173043]
[1737941094133,0.28936057,101830.0,101820.0,0.59828243]
[1737941094525,0.00014749,101830.0,101820.0,0.59828243]
[1737941094930,0.00014749,101830.0,101820.0,0.69096251]
[1737941095137,0.00147378,101840.0,101820.0,0.49441051]
[1737941095439,0.00147378,101840.0,101830.0,0.678133]
[1737941095631,0.00147378,101840.0,101830.0,0.71806343]
[1737941096230,0.37732732,101840.0,101830.0,0.57269086]
[1737941096435,0.37732732,101840.0,101830.0,0.37615786]
[1737941097032,0.73812732,101840.0,101830.0,0.03993084]
[1737941097540,0.71959317,101840.0,101830.0,0.03993084]
[1737941098133,0.35879317,101840.0,101830.0,0.03993084]
[1737941098330,0.71959317,101840.0,101830.0,0.03993084]
[1737941098540,0.83789317,101840.0,101830.0,0.03993084]
[1737941098835,0.96279317,101840.0,101830.0,0.03993084]
[1737941100342,0.60199317,101840.0,101830.0,0.03993084]
[1737941102338,0.16227917,101840.0,101830.0,0.23646384]
[1737941102542,0.16227917,101840.0,101830.0,0.61254788]
[1737941102744,0.16227917,101840.0,101830.0,2.11254788]
[1737941103142,0.16227917,101840.0,101830.0,2.09726384]
[1737941103438,0.35879317,101840.0,101830.0,1.90073084]
[1737941103636,0.47247317,101840.0,101830.0,1.90073084]
[1737941104641,0.18327909,101840.0,101830.0,2.09726384]
[1737941104847,0.06959909,101840.0,101830.0,2.09726384]
[1737941105143,0.06959909,101840.0,101830.0,2.11255325]
[1737941105541,0.44596271,101850.0,101830.0,2.11255325]
[1737941105847,0.44596271,101850.0,101840.0,0.66528349]
[1737941105848,0.01248571,101850.0,101840.0,0.66528349]
[1737941106047,0.00014749,101850.0,101840.0,1.06971433]
[1737941106347,0.25905521,101860.0,101850.0,0.196495]
[1737941106543,0.25905521,101860.0,101850.0,0.70518628]
[1737941106743,0.25905521,101860.0,101850.0,0.6125062]
[1737941106948,0.25905521,101860.0,101850.0,2.1125062]
[1737941107136,0.45553021,101860.0,101850.0,2.1125062]
[1737941108243,0.54821029,101860.0,101850.0,1.9160112]
[1737941108448,0.54821029,101860.0,101850.0,1.91600487]
[1737941108640,0.54821029,101860.0,101850.0,0.05520487]
[1737941108842,0.64089037,101860.0,101850.0,0.05519524]
[1737941109041,1.12239037,101860.0,101850.0,0.04092152]
[1737941109241,0.86333516,101860.0,101850.0,0.04092152]
[1737941109749,0.77065508,101860.0,101850.0,0.04092152]
[1737941110252,0.86333516,101860.0,101850.0,0.04092152]
[1737941110646,0.196495,101850.0,101840.0,0.17618905]
[1737941110950,0.196533,101830.0,101820.0,0.30875472]
[1737941111256,1.21709316,101830.0,101820.0,0.29347967]
[1737941111443,1.24981308,101830.0,101820.0,0.29347967]
[1737941112056,1.34249316,101830.0,101820.0,0.29347967]
[1737941112442,1.24981308,101830.0,101820.0,0.29347967]
[1737941113043,0.196552,101820.0,101810.0,1.50014749]
[1737941113245,0.65003208,101820.0,101810.0,1.50014749]
[1737941113542,0.28923208,101820.0,101810.0,1.50014749]
[1737941113941,0.88901608,101830.0,101810.0,1.69671249]
[1737941114251,0.196536,101830.0,101810.0,2.15019257]
[1737941114450,0.28921608,101830.0,101810.0,2.05751249]
[1737941114752,0.196552,101820.0,101810.0,1.86094749]
[1737941115052,0.09268008,101830.0,101810.0,1.86094749]
[1737941115350,0.28921608,101830.0,101810.0,2.05951449]
[1737941115650,0.28923208,101820.0,101810.0,1.86294749]
[1737941116954,0.196552,101820.0,101810.0,1.86294749]
[1737941118154,0.196537,101830.0,101810.0,0.65218757]
[1737941118358,0.68051379,101840.0,101820.0,0.795549]
[1737941118657,0.79407379,101840.0,101820.0,2.295549]
[1737941119154,0.79407379,101840.0,101820.0,2.415749]
[1737941119344,0.79407379,101840.0,101830.0,0.196533]
[1737941119345,0.38496471,101840.0,101830.0,0.196533]
[1737941119548,0.2592027,101840.0,101830.0,0.65001308]
[1737941119948,0.17232919,101850.0,101840.0,0.196514]
[1737941120148,0.19794336,101870.0,101840.0,0.196514]
[1737941120149,0.21005178,101870.0,101860.0,0.196475]
[1737941120453,0.21005178,101870.0,101850.0,0.796687]
[1737941120454,0.30273186,101870.0,101850.0,0.796687]
[1737941120645,0.34897531,101870.0,101860.0,1.5]
[1737941120845,0.34897531,101870.0,101860.0,1.52456527]
[1737941121049,0.21005178,101870.0,101860.0,1.52456527]
[1737941121950,0.34897531,101870.0,101860.0,1.52456527]
[1737941122553,0.34897531,101870.0,101860.0,1.52556492]
[1737941122852,0.70977531,101870.0,101860.0,0.04091801]
[1737941123045,0.70977531,101870.0,101860.0,0.0324568]
[1737941123246,0.70977531,101870.0,101860.0,0.01535309]
[1737941124057,0.196475,101860.0,101850.0,0.00014749]
[1737941124355,0.81229853,101860.0,101850.0,0.00014749]
[1737941125643,1.16241653,101860.0,101850.0,0.001]
[1737941125849,0.96594153,101860.0,101840.0,0.23480214]
[1737941126046,0.95964206,101850.0,101840.0,0.23480214]
[1737941126250,0.82071853,101850.0,101840.0,0.23480214]
[1737941127350,0.74872353,101850.0,101830.0,0.00014749]
[1737941127545,0.196533,101830.0,101820.0,1.5]
[1737941127763,0.33545653,101830.0,101820.0,1.5]
[1737941127958,0.69625653,101830.0,101820.0,1.5]
[1737941128155,0.33545653,101830.0,101820.0,1.5]
[1737941128552,0.196533,101830.0,101820.0,1.5]
[1737941128764,0.33545653,101830.0,101820.0,1.5]
[1737941128959,0.33645653,101830.0,101820.0,1.5]
[1737941129257,0.33645653,101830.0,101810.0,0.23494963]
[1737941129258,0.196552,101820.0,101810.0,0.23494963]
[1737941129453,0.196572,101810.0,101800.0,0.29347967]
[1737941129647,0.69629553,101810.0,101800.0,0.29347967]
[1737941129851,0.84562353,101820.0,101800.0,0.65427967]
[1737941130051,0.68138653,101820.0,101800.0,0.65427967]
[1737941130253,0.428263,101820.0,101800.0,0.97637067]
[1737941130455,0.56718653,101820.0,101800.0,0.97637067]
[1737941130653,0.19671049,101820.0,101800.0,0.97651816]
[1737941130857,0.00014749,101820.0,101810.0,0.3608]
[1737941131049,0.00014749,101820.0,101810.0,0.676272]
[1737941131249,0.00114749,101820.0,101810.0,0.676272]
[1737941132048,0.00114749,101820.0,101810.0,0.81519553]
[1737941132253,0.11344,101840.0,101830.0,0.196533]
[1737941132452,0.11464001,101850.0,101830.0,0.3608]
[1737941132652,0.50119704,101860.0,101840.0,0.557314]
[1737941132653,0.45027504,101860.0,101840.0,0.557314]
[1737941132854,0.31135151,101860.0,101850.0,0.3608]
[1737941133062,0.45027504,101860.0,101850.0,0.3608]
[1737941133265,0.45027504,101860.0,101840.0,2.176774]
[1737941133561,0.46523772,101860.0,101850.0,0.3608]
[1737941134157,0.35183772,101860.0,101850.0,0.3608]
[1737941134861,0.00147351,101860.0,101850.0,0.3608]
[1737941135050,0.00014749,101870.0,101860.0,0.196475]
[1737941135257,0.23892353,101900.0,101890.0,0.196417]
[1737941135454,0.23892353,101900.0,101890.0,0.3608]
[1737941135663,0.43532853,101900.0,101890.0,1.8608]
[1737941135965,0.77759437,101900.0,101890.0,1.5153498]
[1737941136151,0.77759437,101900.0,101890.0,1.51534997]
[1737941136766,0.77759437,101900.0,101880.0,0.00014749]
[1737941136767,0.196417,101890.0,101880.0,0.00014749]
[1737941137065,0.196456,101870.0,101860.0,0.36327261]
[1737941137265,0.33537953,101870.0,101860.0,0.36327261]
[1737941137461,0.69617953,101870.0,101860.0,0.00247261]
[1737941137852,0.69617953,101870.0,101860.0,0.001]
[1737941138660,0.33537953,101870.0,101860.0,0.001]
[1737941139067,0.69617953,101870.0,101850.0,0.47864749]
[1737941139269,0.13892353,101860.0,101850.0,0.47864749]
[1737941139767,0.13892353,101860.0,101850.0,0.67514149]
[1737941141070,0.33737953,101870.0,101850.0,0.67514149]
[1737941141260,0.002,101870.0,101860.0,0.557275]
[1737941141460,0.002,101870.0,101860.0,0.799675]
[1737941143973,0.198456,101870.0,101860.0,0.799675]
[1737941144461,0.33737953,101870.0,101860.0,0.799675]
[1737941145068,0.198456,101870.0,101860.0,0.799675]
[1737941145660,0.33737953,101870.0,101860.0,0.6032]
[1737941145861,0.33737953,101870.0,101860.0,0.3608]
[1737941147164,0.198456,101870.0,101860.0,0.557275]
[1737941147358,0.198456,101870.0,101860.0,0.3608]
[1737941147359,0.33737953,101870.0,101860.0,0.3608]
[1737941148774,0.33737953,101870.0,101860.0,0.37601259]
[1737941149072,0.32538332,101870.0,101860.0,0.37601259]
[1737941149472,0.32538332,101870.0,101860.0,0.557275]
[1737941150166,0.32538332,101870.0,101860.0,0.3608]
[1737941151177,0.44871002,101880.0,101860.0,0.557275]
[1737941151773,0.33537953,101870.0,101860.0,0.557275]
[1737941151972,0.33537953,101870.0,101860.0,2.057275]
[1737941152875,0.33537953,101870.0,101860.0,0.3608]
[1737941153369,0.13892353,101870.0,101860.0,2.057275]
[1737941153574,0.19658749,101880.0,101860.0,2.057275]
[1737941153761,0.33551102,101880.0,101860.0,2.057275]
[1737941153966,0.33537953,101870.0,101860.0,2.057275]
[1737941154274,0.196456,101870.0,101860.0,2.057275]
[1737941154476,0.33537953,101870.0,101860.0,2.057275]
[1737941154974,0.33537953,101870.0,101860.0,1.8608]
[1737941156575,0.28907041,101870.0,101860.0,1.8608]
[1737941157577,0.28907041,101870.0,101860.0,1.5]
[1737941157973,0.30343366,101870.0,101860.0,1.5]
[1737941160282,0.4023209,101880.0,101870.0,0.196456]
[1737941160582,0.2058819,101880.0,101870.0,0.557256]
[1737941160778,0.2058819,101880.0,101870.0,2.176156]
[1737941161483,0.2058819,101880.0,101870.0,2.19143554]
[1737941161787,0.0937619,101880.0,101870.0,2.19243554]
[1737941161989,0.00114749,101880.0,101870.0,2.19243554]
[1737941162178,0.00114749,101880.0,101870.0,2.30913554]
[1737941162480,0.3182833,101900.0,101890.0,0.196417]
[1737941162681,0.3182833,101900.0,101890.0,0.21169654]
[1737941162982,0.3182833,101900.0,101890.0,0.57249654]
[1737941163576,0.3182833,101900.0,101890.0,0.557217]
[1737941164085,0.22566889,101900.0,101890.0,0.557217]
[1737941164680,0.22566889,101900.0,101890.0,0.558217]
[1737941164880,0.3182833,101900.0,101890.0,0.558217]
[1737941165272,0.6351813,101900.0,101890.0,0.3618]
[1737941165477,0.8655813,101900.0,101890.0,0.3618]
[1737941165684,0.85904336,101900.0,101890.0,0.3618]
[1737941165882,1.21984336,101900.0,101890.0,0.001]
[1737941166077,1.31245777,101900.0,101890.0,0.001]
[1737941166281,0.196417,101890.0,101880.0,0.00014749]
[1737941166485,0.74244582,101890.0,101880.0,0.00014749]
[1737941167788,0.65083141,101890.0,101880.0,0.00114749]
[1737941168278,0.40303141,101890.0,101880.0,0.00114749]
[1737941168683,0.81010101,101890.0,101880.0,0.00114749]
[1737941168883,0.44930101,101890.0,101880.0,0.00114749]
[1737941169386,0.13988401,101890.0,101880.0,0.19758449]
[1737941169692,0.25288401,101890.0,101880.0,0.19758449]
[1737941169889,0.44930101,101890.0,101880.0,0.00114749]
[1737941170393,0.82442989,101890.0,101880.0,0.00114749]
[1737941170984,0.46362989,101890.0,101880.0,0.00114749]
[1737941172088,0.12832888,101890.0,101880.0,0.00114749]
[1737941172284,0.12832888,101890.0,101880.0,0.19758349]
[1737941172695,0.26721289,101890.0,101880.0,0.00114749]
[1737941172894,0.01532888,101890.0,101880.0,0.00114749]
[1737941173188,0.01532888,101890.0,101880.0,1.50114749]
[1737941173393,0.35062989,101890.0,101880.0,1.50114749]
[1737941176195,0.001,101890.0,101880.0,2.05838349]
[1737941176402,0.001,101890.0,101880.0,2.41328349]
[1737941176903,0.33630101,101890.0,101880.0,0.71684749]
[1737941177100,0.13988401,101890.0,101880.0,0.91328349]
[1737941177299,0.001,101890.0,101880.0,2.41328349]
[1737941178303,0.001,101890.0,101880.0,2.5521675]
[1737941179401,0.001,101890.0,101880.0,2.41328349]
[1737941182108,0.197417,101890.0,101880.0,2.41328349]
[1737941182303,0.33630101,101890.0,101880.0,2.41328349]
[1737941183006,0.33630101,101890.0,101880.0,2.30068349]
[1737941183804,0.33630101,101890.0,101880.0,1.98464749]
[1737941184004,0.44820101,101890.0,101880.0,1.86194749]
[1737941184811,0.92560101,101890.0,101880.0,1.50114749]
[1737941185002,1.18471947,101890.0,101880.0,1e-08]
[1737941185202,0.196437,101880.0,101870.0,0.29347967]
[1737941185409,0.196456,101870.0,101860.0,2.15427967]
[1737941185606,0.44818001,101870.0,101860.0,2.15427967]
[1737941186006,0.44818001,101870.0,101860.0,0.65427967]
[1737941186710,0.196475,101860.0,101850.0,0.33589307]
[1737941186913,1.04535901,101860.0,101850.0,0.33529307]
[1737941188311,0.196494,101850.0,101840.0,0.40621737]
[1737941188502,0.69617801,101850.0,101840.0,0.29584783]
[1737941188702,0.83506202,101850.0,101840.0,0.29584783]
[1737941189310,0.83506202,101850.0,101800.0,0.19671125]
[1737941189311,0.68769502,101850.0,101800.0,0.19671125]
[1737941189518,0.69624001,101820.0,101800.0,0.196585]
[1737941189814,0.80904001,101820.0,101810.0,0.00014749]
[1737941190016,0.670156,101820.0,101810.0,0.00014749]
[1737941190210,0.30950349,101820.0,101810.0,0.00014749]
[1737941190410,0.4483875,101820.0,101810.0,0.00014749]
[1737941191613,0.8121875,101820.0,101810.0,0.00014749]
[1737941191808,1.0376875,101820.0,101810.0,0.00014749]
[1737941193812,1.0376875,101820.0,101810.0,1.50014749]
[1737941194715,1.0376875,101820.0,101810.0,0.00014749]
[1737941196510,1.05105234,101820.0,101810.0,0.00014749]
[1737941198423,0.51719634,101820.0,101810.0,0.00014749]
[1737941198624,0.00414749,101820.0,101810.0,0.67581949]
[1737941199512,0.46523538,101840.0,101810.0,0.57192563]
[1737941199714,0.46523538,101840.0,101820.0,0.792642]
[1737941199913,0.09267814,101830.0,101820.0,0.792642]
[1737941200109,0.09267814,101830.0,101820.0,0.5961]
[1737941200319,0.28921114,101830.0,101820.0,0.5961]
[1737941200519,0.335593,101830.0,101820.0,0.5961]
[1737941200714,0.335593,101830.0,101820.0,1.9764]
[1737941200916,0.335593,101830.0,101820.0,1.8608]
[1737941201220,0.196552,101820.0,101810.0,0.48024749]
[1737941201524,0.196552,101820.0,101810.0,0.11844749]
[1737941201525,0.335612,101820.0,101810.0,0.11844749]
[1737941202118,0.335612,101820.0,101810.0,0.00014749]
[1737941203115,0.696412,101820.0,101810.0,0.00014749]
[1737941203324,0.808412,101820.0,101810.0,0.00014749]
[1737941203623,0.809412,101820.0,101810.0,0.00014749]
[1737941203825,0.811412,101820.0,101810.0,0.00014749]
[1737941204028,0.924132,101820.0,101810.0,0.00014749]
[1737941204211,0.563332,101820.0,101810.0,0.00014749]
[1737941204913,0.312272,101820.0,101810.0,0.00014749]
[1737941205118,0.11572,101820.0,101810.0,0.55751949]
[1737941206815,0.46392101,101820.0,101810.0,0.36094749]
[1737941207020,0.46392101,101820.0,101810.0,1.86094749]
[1737941207323,0.82472101,101820.0,101810.0,0.00014749]
[1737941209017,0.62816001,101820.0,101800.0,1.5]
[1737941209217,0.62816001,101820.0,101790.0,0.4776]
[1737941209218,0.196627,101790.0,101780.0,0.6034]
[1737941209724,0.335687,101790.0,101780.0,0.6034]
[1737941210317,0.696487,101790.0,101780.0,0.2426]
[1737941210523,0.697487,101790.0,101780.0,0.2496]
[1737941211030,0.697487,101790.0,101780.0,0.2516]
[1737941211922,0.697487,101790.0,101780.0,0.009]
[1737941214822,0.7097369,101790.0,101780.0,0.009]
[1737941216324,0.8223769,101790.0,101780.0,0.009]
[1737941218622,0.196649,101780.0,101770.0,0.00014749]
[1737941218825,0.816009,101780.0,101770.0,0.00014749]
[1737941219430,0.196668,101770.0,101760.0,0.1126]
[1737941219638,0.696528,101770.0,101760.0,0.1126]
[1737941220021,0.196688,101760.0,101750.0,1.86227424]
[1737941220226,0.335748,101760.0,101750.0,1.86227424]
[1737941221231,0.336748,101760.0,101750.0,1.86827424]
[1737941221930,0.336748,101760.0,101750.0,2.06498124]
[1737941222123,0.001,101760.0,101750.0,2.06498124]
[1737941223227,0.001,101760.0,101750.0,2.06698124]